bitfinex/quotes_BTCUSD_20251117
["timestamp","ask_amount","ask_price","bid_price","bid_amount"]
[1763392932621,0.10416178,94346.0,94234.0,0.07780433]
[1763392932622,0.039,94330.0,94250.0,0.96856711]
[1763392932881,0.10416178,94346.0,94260.0,0.9785671]
[1763392933071,0.01450497,94330.0,94270.0,0.9785671]
[1763392933280,0.039,94349.0,94271.0,3.0]
[1763392933487,0.01426069,94334.0,94271.0,3.0]
[1763392933701,0.0004,94350.0,94280.0,0.96856711]
[1763392933936,0.0004,94350.0,94308.0,0.07780433]
[1763392934183,0.0004,94350.0,94270.0,0.00999999]
[1763392934184,0.01490352,94350.0,94309.0,0.00778043]
[1763392934382,0.01490352,94350.0,94273.0,0.323]
[1763392934383,0.0004,94350.0,94273.0,0.323]
[1763392934598,0.0004,94350.0,94290.0,0.96856711]
[1763392934811,0.0004,94350.0,94300.0,0.96856711]
[1763392935021,0.0004,94350.0,94301.0,0.00047642]
[1763392935231,0.0004,94350.0,94281.0,0.323]
[1763392935476,0.0004,94350.0,94280.0,0.96856711]
[1763392935477,0.0004,94350.0,94283.0,0.323]
[1763392935689,0.0004,94350.0,94280.0,0.20999999]
[1763392935690,0.0004,94350.0,94300.0,0.96856711]
[1763392935900,0.0004,94350.0,94290.0,0.20999999]
[1763392936125,0.0004,94350.0,94291.0,3.0]
[1763392936356,0.0004,94350.0,94300.0,1.16856711]
[1763392936567,0.0004,94350.0,94326.0,0.07780433]
[1763392936798,0.01466376,94386.0,94326.0,0.39585433]
[1763392937003,0.02648277,94401.0,94327.0,3.0]
[1763392937212,0.02648164,94405.0,94332.0,0.36641874]
[1763392937418,0.03791152,94409.0,94340.0,0.2]
[1763392937624,0.0002,94410.0,94340.0,0.318]
[1763392937836,0.10416178,94408.0,94340.0,0.318]
[1763392938043,0.02648108,94407.0,94340.0,0.318]
[1763392938284,0.42401108,94407.0,94340.0,0.318]
[1763392938479,0.04341874,94391.0,94340.0,0.318]
[1763392938686,0.04341874,94389.0,94340.0,0.318]
[1763392938891,0.04341874,94387.0,94340.0,0.318]
[1763392939097,0.36641874,94370.0,94340.0,0.318]
[1763392939310,0.04341874,94368.0,94341.0,0.00179417]
[1763392939521,0.04341874,94366.0,94341.0,0.00179417]
[1763392939729,0.04341874,94364.0,94301.0,0.07780433]
[1763392939938,0.36641874,94362.0,94302.0,0.00778043]
[1763392940147,0.04341874,94362.0,94303.0,3.0]
[1763392940356,0.00025082,94315.0,94303.0,3.0]
[1763392940568,0.00025082,94315.0,94302.0,0.00778043]
[1763392940786,8.2e-07,94315.0,94302.0,0.00778043]
[1763392940997,8.2e-07,94315.0,94303.0,0.00855848]
[1763392941206,0.04341874,94373.0,94303.0,0.00855848]
[1763392941409,0.04341874,94371.0,94303.0,0.00855848]
[1763392941622,0.04341874,94371.0,94304.0,3.0]
[1763392941800,0.06299632,94376.0,94303.0,0.00855848]
[1763392942052,0.04341874,94374.0,94301.0,0.07780433]
[1763392942252,0.04341874,94372.0,94303.0,0.002]
[1763392942498,0.02649118,94371.0,94303.0,0.002]
[1763392942780,0.0002,94410.0,94311.0,3.0]
[1763392942781,0.01456604,94384.0,94311.0,3.0]
[1763392942986,0.02648725,94385.0,94310.0,0.20999999]
[1763392942987,0.0144404,94395.0,94321.0,3.0]
[1763392943225,0.02598568,94406.0,94331.0,3.0]
[1763392943465,0.0002,94410.0,94340.0,0.2]
[1763392943656,0.0002,94410.0,94331.0,3.0]
[1763392943867,0.02668024,94410.0,94331.0,3.0]
[1763392944073,0.0002,94410.0,94373.0,0.07780433]
[1763392944310,0.0002,94410.0,94374.0,0.00778043]
[1763392944737,0.0002,94410.0,94373.0,0.01158476]
[1763392945807,0.0002,94410.0,94332.0,3.0]
[1763392946013,0.0002,94410.0,94340.0,0.00999999]
[1763392946224,0.0002,94410.0,94340.0,0.32799999]
[1763392946428,0.0002,94410.0,94341.0,3.0]
[1763392946429,0.04341874,94408.0,94341.0,3.0]
[1763392946632,0.04341874,94408.0,94342.0,0.00105996]
[1763392946881,0.04341874,94408.0,94350.0,0.2]
[1763392947092,0.0002,94410.0,94350.0,0.2]
[1763392947093,0.0002,94410.0,94352.0,3.0]
[1763392947299,0.0002,94410.0,94354.0,3.0]
[1763392947511,0.0002,94410.0,94361.0,3.0]
[1763392947718,0.0002,94410.0,94371.0,3.0]
[1763392947935,0.0002,94410.0,94371.0,0.31789]
[1763392948639,9e-05,94416.0,94372.0,3.0]
[1763392948922,0.07845,94478.0,94372.0,3.0]
[1763392948923,0.10416178,94477.0,94381.0,3.0]
[1763392949128,0.01469162,94465.0,94387.0,0.05]
[1763392949352,0.01469162,94465.0,94390.0,0.00999999]
[1763392949579,0.01469162,94465.0,94401.0,3.0]
[1763392949804,0.0004,94480.0,94401.0,3.31779]
[1763392950026,0.0004,94480.0,94411.0,3.0]
[1763392950251,0.0004,94480.0,94420.0,0.2]
[1763392950477,0.0004,94480.0,94421.0,3.0]
[1763392950698,0.0004,94480.0,94421.0,0.31773]
[1763392950910,0.0004,94480.0,94422.0,0.00035648]
[1763392951150,0.0004,94480.0,94421.0,0.31773]
[1763392951151,0.323,94478.0,94421.0,0.31773]
[1763392951363,0.323,94476.0,94421.0,0.31773]
[1763392951589,0.06988076,94475.0,94421.0,0.31773]
[1763392951812,0.36641874,94461.0,94421.0,0.26773]
[1763392952031,0.04341874,94459.0,94421.0,0.26773]
[1763392952255,0.36641874,94457.0,94371.0,3.0]
[1763392952472,0.04341874,94455.0,94371.0,3.0]
[1763392952696,0.04341874,94453.0,94371.0,3.0]
[1763392952918,0.04341874,94453.0,94340.0,0.60814879]
[1763392952919,0.36641874,94420.0,94342.0,2.8]
[1763392953140,0.2,94417.0,94350.0,0.00999999]
[1763392953362,0.36641874,94411.0,94352.0,3.0]
[1763392953592,0.10416178,94447.0,94361.0,3.0]
[1763392953814,0.07845,94454.0,94362.0,0.00176719]
[1763392953815,0.04341874,94441.0,94362.0,0.00176719]
[1763392954037,0.36641874,94437.0,94364.0,3.0]
[1763392954257,0.10521227,94440.0,94367.0,0.323]
[1763392954258,0.36641874,94433.0,94367.0,0.323]
[1763392954552,0.323,94429.0,94369.0,3.0]
[1763392954777,0.0526103,94507.0,94369.0,3.0]
[1763392954778,0.07845,94466.0,94388.0,2.8424]
[1763392954986,0.01150387,94459.0,94390.0,3.0]
[1763392955213,0.10416178,94462.0,94392.0,3.0]
[1763392955432,0.323,94446.0,94390.0,0.31783]
[1763392955651,0.06988917,94445.0,94390.0,0.31783]
[1763392956050,0.04341874,94443.0,94390.0,0.31783]
[1763392956308,0.06540536,94456.0,94390.0,0.31783]
[1763392956536,0.323,94457.0,94390.0,0.31783]
[1763392956768,0.0004,94490.0,94393.0,0.323]
[1763392956769,0.01453348,94475.0,94393.0,0.323]
[1763392957007,0.11327727,94474.0,94394.0,3.0]
[1763392957224,0.21464243,94474.0,94394.0,0.31782]
[1763392957455,0.04341874,94472.0,94394.0,0.31782]
[1763392957706,0.12224312,94474.0,94394.0,0.31782]
[1763392957707,0.323,94457.0,94394.0,0.31782]
[1763392957923,0.04888811,94456.0,94394.0,0.31782]
[1763392958150,0.04341874,94456.0,94396.0,0.323]
[1763392958376,0.323,94457.0,94399.0,3.0]
[1763392958608,0.07845,94471.0,94399.0,0.3178]
[1763392958829,0.36641874,94463.0,94399.0,0.3178]
[1763392959063,0.04341874,94461.0,94399.0,0.2388]
[1763392959293,0.36641874,94448.0,94399.0,0.2388]
[1763392959520,0.36641874,94446.0,94399.0,0.2388]
[1763392959771,0.04341874,94444.0,94399.0,0.2388]
[1763392960014,0.04341874,94442.0,94399.0,0.2388]
[1763392960220,0.04341874,94440.0,94399.0,0.0388]
[1763392960431,0.00236957,94400.0,94399.0,0.0388]
[1763392960645,0.20164467,94437.0,94399.0,0.0388]
[1763392960907,0.04341874,94436.0,94399.0,0.0388]
[1763392961162,0.05381973,94436.0,94400.0,0.0135436]
[1763392961363,0.0004,94480.0,94399.0,0.0388]
[1763392961364,0.10416178,94477.0,94399.0,0.0388]
[1763392961580,0.04075,94463.0,94399.0,0.0388]
[1763392961793,0.18261178,94462.0,94399.0,0.0388]
[1763392962006,0.20907744,94462.0,94399.0,0.0388]
[1763392962227,0.07845,94461.0,94400.0,0.00901312]
[1763392962445,0.04075,94463.0,94400.0,0.00901312]
[1763392962665,0.04341874,94461.0,94400.0,0.00901312]
[1763392962877,0.36641874,94459.0,94400.0,0.0134553]
[1763392963087,0.04341874,94457.0,94400.0,0.0134553]
[1763392963309,0.04341874,94455.0,94400.0,0.0134553]
[1763392963528,0.04341874,94453.0,94400.0,0.0134553]
[1763392963762,0.04341874,94451.0,94400.0,0.0134553]
[1763392964021,0.36641874,94449.0,94399.0,0.0388]
[1763392964229,0.04341874,94447.0,94401.0,0.01167374]
[1763392964433,0.04341874,94445.0,94399.0,0.0388]
[1763392964715,0.04341874,94443.0,94399.0,0.0388]
[1763392964934,0.04341874,94441.0,94399.0,0.0388]
[1763392965154,0.36641874,94439.0,94399.0,0.0388]
[1763392965602,0.04341874,94437.0,94399.0,0.0388]
[1763392965825,0.04341874,94437.0,94400.0,0.01239598]
[1763392965826,0.04341874,94435.0,94400.0,0.01239598]
[1763392966069,0.04341874,94433.0,94399.0,0.01219598]
[1763392966314,0.04341874,94431.0,94399.0,0.01219598]
[1763392966529,0.04341874,94429.0,94399.0,0.01219598]
[1763392966748,0.04341874,94427.0,94399.0,0.01219598]
[1763392966978,0.00025053,94409.0,94399.0,0.01219598]
[1763392967648,0.00025053,94409.0,94361.0,3.0]
[1763392967864,0.00025053,94409.0,94362.0,0.00106197]
[1763392968089,0.00025053,94409.0,94363.0,3.0]
[1763392968299,0.00025053,94409.0,94371.0,3.0]
[1763392968481,0.00025053,94409.0,94372.0,0.00106187]
[1763392968761,0.00025053,94409.0,94399.0,0.002]
[1763392969207,0.00025053,94409.0,94370.0,0.00999999]
[1763392969424,0.00025053,94409.0,94374.0,0.1118]
[1763392969637,0.00025053,94409.0,94377.0,3.0]
[1763392969898,0.00025053,94409.0,94378.0,0.4348]
[1763392970131,0.00025053,94409.0,94378.0,0.323]
[1763392970557,0.00025053,94409.0,94379.0,0.0010724]
[1763392970996,0.00025053,94409.0,94383.0,0.323]
[1763392971215,0.00025053,94409.0,94386.0,3.0]
[1763392971438,0.00025053,94409.0,94378.0,0.323]
[1763392971651,0.00025053,94409.0,94387.0,0.00217813]
[1763392971882,0.00025053,94409.0,94378.0,0.4348]
[1763392971883,0.00025053,94409.0,94378.0,0.323]
[1763392972163,0.00025053,94409.0,94399.0,0.002]
[1763392972627,0.00025053,94409.0,94362.0,0.323]
[1763392972842,0.00025053,94409.0,94378.0,0.002]
[1763392973060,0.00025053,94409.0,94379.0,0.0005637]
[1763392973542,0.00025053,94409.0,94369.0,0.0005637]
[1763392973746,0.00025053,94409.0,94399.0,0.001]
[1763392974618,0.28172227,94441.0,94399.0,0.001]
[1763392974831,0.04062,94440.0,94367.0,0.13016]
[1763392975084,0.04062,94440.0,94356.0,0.04341874]
[1763392975085,0.011907,94439.0,94365.0,0.05]
[1763392975286,0.01708377,94438.0,94366.0,3.1118]
[1763392975514,0.01708377,94438.0,94379.0,0.001]
[1763392975730,0.01708377,94438.0,94366.0,0.1118]
[1763392975946,0.01708377,94438.0,94367.0,3.0]
[1763392976177,0.01361538,94437.0,94367.0,3.0]
[1763392976361,0.01708377,94436.0,94367.0,3.0]
[1763392976808,0.04341874,94433.0,94370.0,0.02127]
[1763392977013,0.01708377,94432.0,94370.0,0.02127]
[1763392977475,0.04341874,94433.0,94359.0,0.13242198]
[1763392977476,0.323,94427.0,94359.0,0.13242198]
[1763392977686,0.04341874,94425.0,94353.0,0.02127]
[1763392977916,0.04341874,94423.0,94345.0,0.13242198]
[1763392978133,0.36641874,94412.0,94345.0,0.13242198]
[1763392978358,0.04341874,94410.0,94346.0,0.02119856]
[1763392978565,0.04341874,94408.0,94337.0,3.02127]
[1763392978787,0.04341874,94406.0,94339.0,0.02127]
[1763392978995,0.04341874,94404.0,94339.0,0.02127]
[1763392979205,0.04341874,94404.0,94342.0,0.02127]
[1763392979420,0.323,94405.0,94346.0,0.02127]
[1763392979637,0.323,94405.0,94361.0,0.15521874]
[1763392979851,0.323,94405.0,94364.0,3.0]
[1763392980119,0.13601934,94477.0,94372.0,3.04341874]
[1763392980120,0.04062,94445.0,94372.0,3.04341874]
[1763392980348,0.04062,94445.0,94351.0,3.0]
[1763392980349,0.323,94441.0,94351.0,3.0]
[1763392980567,0.02878367,94440.0,94362.0,3.0]
[1763392980783,0.06260524,94439.0,94365.0,0.323]
[1763392980994,0.04341874,94437.0,94358.0,0.34427]
[1763392981216,0.01708377,94436.0,94362.0,0.02127]
[1763392981433,0.01708377,94436.0,94364.0,0.02127]
[1763392981434,0.323,94435.0,94364.0,0.02127]
[1763392981663,0.03627075,94434.0,94366.0,0.02127]
[1763392981875,0.01708377,94434.0,94370.0,0.02127]
[1763392982096,0.07636,94450.0,94374.0,0.34427]
[1763392982309,0.01351067,94445.0,94385.0,3.0]
[1763392982528,0.01351067,94445.0,94387.0,3.0]
[1763392982741,0.07636,94451.0,94387.0,0.31784]
[1763392982960,0.03628098,94450.0,94387.0,0.31784]
[1763392983176,0.03628098,94450.0,94388.0,0.02105549]
[1763392983177,0.04341874,94449.0,94388.0,0.02105549]
[1763392983389,0.04341874,94447.0,94388.0,0.01242599]
[1763392983602,0.04341874,94445.0,94388.0,0.33026599]
[1763392983820,0.04341874,94443.0,94388.0,0.31784]
[1763392984049,0.04341874,94441.0,94388.0,0.31784]
[1763392984318,0.04341874,94439.0,94388.0,0.31784]
[1763392984523,0.04341874,94437.0,94389.0,0.02017574]
[1763392984736,0.34008377,94438.0,94390.0,0.02127]
[1763392984737,0.323,94438.0,94390.0,0.02127]
[1763392984941,0.323,94438.0,94392.0,0.02127]
[1763392985206,0.323,94438.0,94394.0,3.02127]
[1763392985421,0.323,94438.0,94396.0,0.02127]
[1763392985633,0.07636,94460.0,94396.0,0.33908]
[1763392985848,0.04341874,94458.0,94396.0,0.33908]
[1763392986058,0.323,94459.0,94397.0,0.323]
[1763392986281,0.10416178,94492.0,94397.0,0.323]
[1763392986282,0.07636,94473.0,94399.0,0.323]
[1763392986523,0.01389884,94463.0,94403.0,0.323]
[1763392986782,0.01389884,94463.0,94404.0,0.02118554]
[1763392986988,0.01389884,94463.0,94405.0,0.34418531]
[1763392986989,0.07636,94463.0,94405.0,0.34418531]
[1763392987213,0.07636,94463.0,94405.0,0.323]
[1763392987423,0.07636,94463.0,94406.0,0.01901549]
[1763392988073,0.04341874,94462.0,94406.0,0.01901549]
[1763392988279,0.47058052,94462.0,94403.0,0.31779]
[1763392988486,0.36641874,94460.0,94403.0,0.31779]
[1763392988693,0.36641874,94460.0,94404.0,0.01764224]
[1763392988903,0.36641874,94460.0,94403.0,0.31779]
[1763392988904,0.36641874,94458.0,94403.0,0.31779]
[1763392989562,0.36641874,94456.0,94404.0,0.02118554]
[1763392989790,0.36641874,94456.0,94404.0,0.323]
[1763392989999,0.01390771,94469.0,94407.0,3.0]
[1763392990221,0.0004,94490.0,94400.0,1.16616111]
[1763392990222,0.0004,94490.0,94421.0,0.323]
[1763392990429,0.001,94458.0,94423.0,0.323]
[1763392990641,0.0004,94490.0,94427.0,0.323]
[1763392990857,0.0004,94490.0,94427.0,0.49652]
[1763392990858,0.01434541,94480.0,94427.0,0.49652]
[1763392991076,0.07676,94480.0,94428.0,0.323]
[1763392991290,0.34418554,94479.0,94429.0,0.02117993]
[1763392991522,0.323,94479.0,94429.0,0.02117993]
[1763392991749,0.01735949,94478.0,94429.0,0.02117993]
[1763392992033,0.04341874,94477.0,94427.0,0.49652]
[1763392992235,0.04341874,94475.0,94427.0,0.49652]
[1763392992445,0.04341874,94473.0,94428.0,0.00760012]
[1763392992654,0.06460428,94473.0,94427.0,0.49652]
[1763392992874,0.04341874,94471.0,94427.0,0.49652]
[1763392993091,0.04341874,94469.0,94427.0,0.49652]
[1763392993307,0.04341874,94467.0,94427.0,0.49652]
[1763392993520,0.04341874,94465.0,94427.0,0.49652]
[1763392993738,0.04341874,94465.0,94428.0,0.01168574]
[1763392993739,0.04341874,94463.0,94428.0,0.01168574]
[1763392993946,0.36641874,94461.0,94428.0,0.01168574]
[1763392994155,0.04341874,94459.0,94428.0,0.01883398]
[1763392994365,0.36641874,94454.0,94428.0,0.01883398]
[1763392994589,0.04341874,94452.0,94428.0,0.01883398]
[1763392994831,0.04341874,94450.0,94427.0,0.49652]
[1763392995034,0.04341874,94448.0,94427.0,0.49652]
[1763392995252,0.04341874,94446.0,94427.0,0.49652]
[1763392995494,0.02118554,94446.0,94428.0,0.02083254]
[1763392995696,0.04341874,94448.0,94428.0,0.02083254]
[1763392995937,0.04341874,94444.0,94427.0,0.49652]
[1763392996127,0.04341874,94442.0,94427.0,0.49652]
[1763392996336,0.00052923,94428.0,94427.0,0.49652]
[1763392996769,0.07636,94477.0,94427.0,0.49652]
[1763392996977,0.323,94485.0,94427.0,0.49652]
[1763392997202,0.07636,94476.0,94427.0,0.29652]
[1763392997419,0.323,94485.0,94427.0,0.29652]
[1763392997420,0.04341874,94470.0,94427.0,0.29652]
[1763392997842,0.04341874,94468.0,94427.0,0.29652]
[1763392998050,0.36641874,94468.0,94427.0,0.29652]
[1763392998252,0.44270874,94468.0,94427.0,0.29663]
[1763392998458,0.36641874,94466.0,94428.0,0.02118015]
[1763392998660,0.04341874,94464.0,94428.0,0.02129015]
[1763392998834,0.04341874,94464.0,94429.0,0.00011]
[1763392999208,0.323,94465.0,94430.0,0.0211797]
[1763392999653,0.04075,94496.0,94431.0,0.04352874]
[1763392999853,0.04122,94482.0,94431.0,0.74003874]
[1763393000063,0.04075,94496.0,94432.0,0.34258304]
[1763393000064,0.01984568,94494.0,94432.0,0.34258304]
[1763393000269,0.0004,94480.0,94433.0,0.00011]
[1763393000452,0.01376298,94480.0,94434.0,0.01856263]
[1763393000707,0.01376298,94480.0,94433.0,0.69661]
[1763393000920,0.0004,94480.0,94434.0,0.00011]
[1763393001127,0.36641874,94479.0,94434.0,0.00011]
[1763393001328,0.02118554,94478.0,94434.0,0.00011]
[1763393001538,0.00863287,94478.0,94434.0,0.00874287]
[1763393001754,0.36641874,94476.0,94434.0,0.02095249]
[1763393001960,0.04341874,94474.0,94433.0,0.6965]
[1763393002177,0.04341874,94472.0,94433.0,0.6965]
[1763393002379,0.04341874,94470.0,94433.0,0.6965]
[1763393002589,0.04341874,94468.0,94433.0,0.6965]
[1763393002795,0.34418554,94469.0,94433.0,0.6965]
[1763393002796,0.36641874,94461.0,94433.0,0.6965]
[1763393002998,0.36641874,94459.0,94433.0,0.6965]
[1763393003200,0.04341874,94457.0,94434.0,0.02117881]
[1763393003407,0.04341874,94455.0,94434.0,0.02117881]
[1763393003619,0.04341874,94455.0,94433.0,0.6965]
[1763393003620,0.04341874,94453.0,94433.0,0.6965]
[1763393003830,0.04341874,94451.0,94433.0,0.6965]
[1763393004037,0.04341874,94449.0,94434.0,0.01234612]
[1763393004241,0.07629,94463.0,94434.0,0.01234612]
[1763393004242,0.0002506,94437.0,94434.0,0.02117881]
[1763393004885,0.0002506,94437.0,94435.0,0.02117858]
[1763393005082,0.0002506,94437.0,94433.0,0.51767858]
[1763393005281,0.0002506,94437.0,94434.0,0.00226344]
[1763393005853,0.0002506,94437.0,94433.0,0.51767858]
[1763393006004,0.0002506,94437.0,94434.0,0.00226276]
[1763393006646,0.0002506,94437.0,94433.0,0.51767858]
[1763393007046,0.0002506,94437.0,94434.0,0.002]
[1763393007446,0.0002506,94437.0,94435.0,0.00120381]
[1763393008048,0.57972,94501.0,94435.0,0.00120381]
[1763393008250,0.5,94501.0,94436.0,0.323]
[1763393008458,0.5,94501.0,94452.0,0.04341874]
[1763393008459,0.0004,94480.0,94452.0,0.04341874]
[1763393008659,0.0004,94480.0,94456.0,0.323]
[1763393008937,0.0004,94480.0,94460.0,0.323]
[1763393009333,0.0004,94480.0,94460.0,0.87523]
[1763393009580,0.0004,94480.0,94461.0,0.00328204]
[1763393010171,0.0004,94480.0,94460.0,0.87523]
[1763393010354,0.0004,94480.0,94460.0,0.87623]
[1763393010770,0.0004,94480.0,94460.0,0.87523]
[1763393011195,0.0004,94480.0,94461.0,0.001]
[1763393011610,0.0004,94480.0,94460.0,0.87523]
[1763393011803,0.04381874,94480.0,94460.0,0.87523]
[1763393012000,0.36641874,94478.0,94461.0,0.00226211]
[1763393012211,0.0004,94480.0,94460.0,0.87523]
[1763393012212,0.04341874,94476.0,94460.0,0.67523]
[1763393012439,0.01597758,94475.0,94460.0,0.67523]
[1763393012649,0.01597758,94475.0,94461.0,0.0040989]
[1763393013006,0.01045387,94475.0,94460.0,0.67623]
[1763393013206,0.04341874,94473.0,94460.0,0.67523]
[1763393013547,0.04341874,94471.0,94411.0,0.323]
[1763393013752,0.04341874,94469.0,94411.0,0.323]
[1763393013911,0.02243433,94468.0,94411.0,0.323]
[1763393014293,0.02243433,94468.0,94410.0,0.65797899]
[1763393014294,0.02243433,94468.0,94403.0,0.04341874]
[1763393014497,0.01129124,94468.0,94406.0,3.0]
[1763393014752,0.02055224,94471.0,94409.0,0.04341874]
[1763393014947,0.04341874,94470.0,94411.0,0.323]
[1763393015140,0.323,94479.0,94411.0,0.323]
[1763393015141,0.02275125,94478.0,94420.0,0.65797899]
[1763393015294,0.06190773,94477.0,94421.0,0.00120398]
[1763393015531,0.36641874,94475.0,94422.0,0.00120397]
[1763393015800,0.07972,94476.0,94411.0,0.323]
[1763393015801,0.04341874,94473.0,94412.0,0.00120397]
[1763393015968,0.04341874,94473.0,94400.0,0.28894809]
[1763393015969,0.04341874,94471.0,94390.0,0.2]
[1763393016129,0.04341874,94469.0,94394.0,3.0]
[1763393016336,0.04341874,94467.0,94390.0,0.65797899]
[1763393016536,0.04341874,94465.0,94391.0,0.323]
[1763393016735,0.36641874,94463.0,94393.0,0.04341874]
[1763393016942,0.04341874,94461.0,94391.0,0.04341874]
[1763393017152,0.04726033,94464.0,94391.0,0.36641874]
[1763393017153,0.04341874,94459.0,94391.0,0.36641874]
[1763393017365,0.04341874,94457.0,94391.0,0.36641874]
[1763393017565,0.04341874,94455.0,94393.0,0.04341874]
[1763393017772,0.03345652,94454.0,94397.0,0.36641874]
[1763393018211,0.001,94465.0,94397.0,0.36641874]
[1763393018212,0.03746,94510.0,94440.0,0.65797899]
[1763393018420,0.03746,94510.0,94441.0,0.34417724]
[1763393018622,0.01589621,94499.0,94441.0,0.323]
[1763393019360,0.00025058,94446.0,94432.0,0.36641874]
[1763393019563,0.00025058,94446.0,94432.0,3.0]
[1763393019795,0.00025058,94446.0,94420.0,0.13242198]
[1763393019991,0.00025058,94446.0,94411.0,3.0]
[1763393020209,0.00025058,94446.0,94420.0,0.65797899]
[1763393020556,0.00025058,94446.0,94411.0,3.0]
[1763393020950,0.00025058,94446.0,94420.0,0.65797899]
[1763393021423,0.00025058,94446.0,94410.0,0.2]
[1763393021424,0.00025058,94446.0,94411.0,3.0]
[1763393021537,0.00025058,94446.0,94421.0,0.01791769]
[1763393021751,0.00025058,94446.0,94430.0,0.65797899]
[1763393021953,0.00025058,94446.0,94431.0,0.02117948]
[1763393022555,0.00025058,94446.0,94422.0,0.0211815]
[1763393022757,0.00025058,94446.0,94421.0,0.323]
[1763393022963,0.00025058,94446.0,94422.0,0.01745794]
[1763393023162,0.04341874,94478.0,94431.0,3.0]
[1763393023403,0.04341874,94478.0,94420.0,0.201]
[1763393023404,0.01589621,94477.0,94411.0,0.323]
[1763393023576,0.01589621,94477.0,94411.0,3.0]
[1763393023958,0.0004,94480.0,94421.0,0.001]
[1763393024146,0.36641874,94479.0,94412.0,3.0]
[1763393024363,0.36641874,94479.0,94400.0,0.85797899]
[1763393024364,0.04341874,94477.0,94400.0,0.85797899]
[1763393024578,0.04341874,94475.0,94400.0,0.65797899]
[1763393024718,0.04341874,94473.0,94401.0,0.34030474]
[1763393024942,0.04341874,94471.0,94410.0,0.65797899]
[1763393025146,0.04341874,94469.0,94410.0,0.65797899]
[1763393025321,0.04341874,94467.0,94410.0,0.65797899]
[1763393025539,0.04341874,94478.0,94411.0,0.02118397]
[1763393025757,0.01629621,94480.0,94420.0,0.65797899]
[1763393025758,0.04341874,94476.0,94420.0,0.65797899]
[1763393025995,0.04341874,94474.0,94421.0,0.02078062]
[1763393026209,0.04341874,94474.0,94422.0,0.01564458]
[1763393026409,0.0004,94480.0,94420.0,0.65797899]
[1763393026614,0.0004,94480.0,94421.0,3.02118172]
[1763393026812,0.0004,94480.0,94421.0,2.8]
[1763393027175,0.36641874,94475.0,94421.0,3.0]
[1763393027373,0.36641874,94470.0,94421.0,3.0]
[1763393028060,0.0004,94480.0,94430.0,0.65797899]
[1763393028240,0.0568,94475.0,94431.0,0.01570739]
[1763393028466,0.0568,94473.0,94431.0,0.01570739]
[1763393028666,0.0004,94480.0,94431.0,0.01570739]
[1763393028667,0.0568,94479.0,94431.0,0.01570739]
[1763393028785,0.36641874,94476.0,94431.0,0.01570739]
[1763393028990,0.3798,94473.0,94432.0,0.02116038]
[1763393029194,0.3798,94471.0,94423.0,0.4348]
[1763393029404,0.0004,94480.0,94425.0,0.323]
[1763393029609,0.0004,94480.0,94413.0,0.323]
[1763393029805,0.04341874,94474.0,94421.0,0.323]
[1763393030013,0.36641874,94472.0,94421.0,0.323]
[1763393030218,0.36641874,94468.0,94421.0,0.323]
[1763393030457,0.36641874,94466.0,94412.0,0.02127]
[1763393030679,0.3798,94464.0,94416.0,0.323]
[1763393030897,0.04465387,94479.0,94430.0,0.65797899]
[1763393031094,0.0004,94480.0,94431.0,0.02117948]
[1763393031270,0.0568,94479.0,94431.0,0.02117948]
[1763393031470,0.0568,94479.0,94431.0,0.33886948]
[1763393031804,0.0004,94480.0,94440.0,0.85797899]
[1763393031965,0.0004,94480.0,94441.0,0.02117724]
[1763393032166,0.0004,94480.0,94441.0,0.31766]
[1763393033879,0.0568,94479.0,94441.0,0.31766]
[1763393034193,0.0568,94479.0,94441.0,0.11766]
[1763393034601,0.0004,94480.0,94441.0,0.11766]
[1763393035559,0.0004,94480.0,94442.0,0.01712988]
[1763393035771,0.0004,94480.0,94443.0,0.01357899]
[1763393035994,0.0004,94480.0,94444.0,0.01643313]
[1763393036200,0.0004,94480.0,94445.0,3.0]
[1763393036412,0.0004,94480.0,94447.0,3.0]
[1763393036628,0.0004,94480.0,94451.0,0.02127]
[1763393036874,0.0004,94480.0,94452.0,0.03362302]
[1763393037083,0.0004,94480.0,94452.0,0.53006825]
[1763393037291,0.0004,94480.0,94460.0,0.65797899]
[1763393037511,0.0004,94480.0,94460.0,1.17556899]
[1763393037712,0.00029412,94480.0,94460.0,1.17556899]
[1763393037917,0.00029412,94480.0,94461.0,0.01357899]
[1763393038161,0.5,94501.0,94461.0,0.01357899]
[1763393038162,0.5,94501.0,94470.0,0.65797899]
[1763393038372,0.5,94501.0,94471.0,0.02117051]
[1763393038582,0.5,94501.0,94471.0,0.86173051]
[1763393038792,0.5,94501.0,94472.0,0.02117029]
[1763393038994,0.5,94501.0,94473.0,0.33544825]
[1763393039196,0.5,94501.0,94474.0,0.02116984]
[1763393040444,0.5,94501.0,94475.0,0.323]
[1763393040691,0.5,94501.0,94474.0,0.51755]
[1763393040692,0.04341874,94500.0,94474.0,0.51855]
[1763393041092,0.04341874,94498.0,94474.0,0.51855]
[1763393041323,0.04341874,94496.0,94474.0,0.51855]
[1763393041527,0.323,94499.0,94474.0,0.33971962]
[1763393041528,0.05931495,94498.0,94474.0,0.33971962]
[1763393041737,0.04341874,94494.0,94474.0,0.33971962]
[1763393041953,0.04341874,94492.0,94474.0,0.33971962]
[1763393042162,0.04341874,94490.0,94475.0,0.00797352]
[1763393042381,0.04341874,94490.0,94475.0,0.00691504]
[1763393042608,0.07536,94518.0,94475.0,0.00691504]
[1763393042817,0.04336719,94500.0,94475.0,0.00691504]
[1763393043478,0.03864,94519.0,94474.0,0.33871962]
[1763393043691,0.07536,94513.0,94474.0,0.33871962]
[1763393043893,0.34138624,94500.0,94475.0,0.00797352]
[1763393044124,0.323,94500.0,94475.0,0.00797352]
[1763393044343,0.01838323,94499.0,94475.0,0.00797352]
[1763393044573,0.07536,94499.0,94474.0,0.33871962]
[1763393044791,0.323,94498.0,94474.0,0.33871962]
[1763393045006,0.0698746,94497.0,94474.0,0.33871962]
[1763393045224,0.1452346,94497.0,94474.0,0.33871962]
[1763393045438,0.04341874,94495.0,94475.0,0.00797352]